bitfinex-derivatives/quotes_BTCF0:USTF0_20250509
["timestamp","ask_amount","ask_price","bid_price","bid_amount"]
[1746813620489,0.0996,103290.0,103280.0,1.98271032]
[1746813621794,0.004,103290.0,103280.0,1.98271032]
[1746813624197,0.004,103290.0,103280.0,1.96784726]
[1746813624396,0.004,103290.0,103280.0,1.98271712]
[1746813626498,0.004,103290.0,103280.0,1.8152737]
[1746813626702,0.0681,103290.0,103280.0,1.98271896]
[1746813626895,0.0997,103290.0,103280.0,1.98271896]
[1746813627393,0.0997,103290.0,103280.0,1.81527554]
[1746813627700,0.0997,103290.0,103280.0,1.76463419]
[1746813627895,0.0997,103290.0,103280.0,1.98271896]
[1746813628091,0.0997,103290.0,103280.0,1.94113797]
[1746813628606,0.0997,103290.0,103280.0,1.58005595]
[1746813629099,0.2597,103290.0,103280.0,1.74749937]
[1746813629791,0.2597,103290.0,103280.0,1.77809937]
[1746813630291,0.0997,103290.0,103280.0,1.77809937]
[1746813630895,0.004,103290.0,103280.0,1.78802445]
[1746813631803,0.004,103290.0,103280.0,1.78803406]
[1746813634804,0.004,103290.0,103280.0,1.95547748]
[1746813635206,0.004,103290.0,103280.0,1.94804413]
[1746813635994,0.15719,103300.0,103280.0,2.11548755]
[1746813636299,0.15719,103300.0,103290.0,1.14521161]
[1746813636598,0.12678,103300.0,103290.0,2.99010299]
[1746813636803,0.12678,103300.0,103290.0,2.68661957]
[1746813636998,0.12678,103300.0,103290.0,3.05595436]
[1746813637192,0.19068,103300.0,103290.0,3.05595436]
[1746813637594,0.22148,103300.0,103290.0,3.05595436]
[1746813637999,0.22048,103300.0,103290.0,3.05595436]
[1746813638211,0.22048,103300.0,103290.0,3.05995436]
[1746813639299,0.22048,103300.0,103290.0,2.84186959]
[1746813639604,0.22048,103300.0,103290.0,3.05995436]
[1746813640905,0.22048,103300.0,103290.0,2.78743436]
[1746813641206,0.22048,103300.0,103290.0,3.05935436]
[1746813641798,0.22048,103300.0,103290.0,3.00177946]
[1746813642101,0.22048,103300.0,103290.0,3.00177901]
[1746813642408,0.22048,103300.0,103290.0,2.78369424]
[1746813643407,0.22048,103300.0,103290.0,3.00177901]
[1746813643798,0.22048,103300.0,103290.0,2.78369424]
[1746813643998,0.22048,103300.0,103290.0,2.75069424]
[1746813644304,0.38048,103300.0,103290.0,1.46877901]
[1746813645309,0.34888,103300.0,103290.0,1.25069424]
[1746813645508,0.34888,103300.0,103290.0,1.50147901]
[1746813646110,0.38088,103300.0,103290.0,1.50147901]
[1746813647201,0.38088,103300.0,103290.0,1.50147773]
[1746813647809,0.38088,103300.0,103290.0,1.28339296]
[1746813648010,0.38088,103300.0,103290.0,1.50147773]
[1746813649309,0.38088,103300.0,103290.0,1.28339296]
[1746813649507,0.38088,103300.0,103290.0,1.50147773]
[1746813650712,0.36636,103300.0,103290.0,1.52644382]
[1746813651307,0.5599611,103300.0,103290.0,1.16689053]
[1746813651506,0.66982962,103300.0,103290.0,1.00013053]
[1746813651706,0.66982962,103300.0,103290.0,0.90331574]
[1746813652805,0.5599611,103300.0,103290.0,0.90331574]
[1746813653613,0.66982962,103300.0,103290.0,0.90331574]
[1746813653802,0.66982962,103300.0,103290.0,0.57331574]
[1746813654609,0.77969814,103300.0,103290.0,0.5584199]
[1746813655012,0.66982962,103300.0,103290.0,0.5584199]
[1746813655512,0.67082962,103300.0,103290.0,0.5564199]
[1746813655712,0.66356962,103300.0,103290.0,0.5564199]
[1746813655912,0.77343814,103300.0,103290.0,0.5564199]
[1746813656107,0.66356962,103300.0,103290.0,0.5564199]
[1746813656309,0.66556962,103300.0,103290.0,0.5564199]
[1746813656819,0.66556962,103300.0,103290.0,0.5544199]
[1746813656820,0.76438162,103300.0,103290.0,0.5544199]
[1746813657419,0.77743814,103300.0,103290.0,0.5544199]
[1746813657720,0.76438162,103300.0,103290.0,0.5544199]
[1746813658613,0.77743814,103300.0,103290.0,0.5544199]
[1746813658815,0.66756962,103300.0,103290.0,0.5544199]
[1746813659010,0.1936199,103290.0,103280.0,0.3709422]
[1746813659218,0.36868842,103290.0,103280.0,0.6525344]
[1746813659422,0.39898842,103290.0,103280.0,0.6525344]
[1746813659616,0.2891199,103290.0,103280.0,0.6525344]
[1746813660221,0.4501199,103290.0,103280.0,0.6833344]
[1746813660410,0.4501199,103290.0,103280.0,1.10320292]
[1746813660613,0.4501199,103290.0,103280.0,1.32128769]
[1746813660818,0.4521199,103290.0,103280.0,1.41810717]
[1746813661009,0.4521199,103290.0,103280.0,1.49532005]
[1746813661316,0.2585,103290.0,103280.0,1.27723528]
[1746813661517,0.2282,103290.0,103280.0,1.60518682]
[1746813661717,0.1962,103290.0,103280.0,1.60518682]
[1746813661923,0.1952,103290.0,103280.0,1.4953183]
[1746813662117,0.2259,103290.0,103280.0,1.4953183]
[1746813662324,0.0659,103290.0,103280.0,1.38544978]
[1746813662524,0.0659,103290.0,103280.0,1.4953183]
[1746813662718,0.0659,103290.0,103280.0,1.4973183]
[1746813662918,0.0639,103290.0,103280.0,1.4973183]
[1746813663420,0.0639,103290.0,103280.0,1.60718682]
[1746813663722,0.0639,103290.0,103280.0,1.55690046]
[1746813664830,0.2575199,103290.0,103280.0,1.55690046]
[1746813665127,0.2239,103290.0,103280.0,1.55690046]
[1746813665317,0.2239,103290.0,103280.0,1.55689875]
[1746813666126,0.0639,103290.0,103280.0,1.55289875]
[1746813666422,0.0639,103290.0,103280.0,1.55289954]
[1746813666627,0.2575199,103290.0,103280.0,1.55289954]
[1746813666824,0.0307,103290.0,103280.0,1.55289954]
[1746813667125,0.5468676,103300.0,103290.0,0.1936199]
[1746813667325,0.5895676,103300.0,103290.0,0.9857199]
[1746813667528,0.5556876,103300.0,103290.0,0.9857199]
[1746813668116,0.7156876,103300.0,103290.0,0.9857199]
[1746813668326,0.7166876,103300.0,103290.0,0.9857199]
[1746813669026,0.7166876,103300.0,103290.0,1.00043271]
[1746813669621,0.88413828,103300.0,103290.0,0.9550199]
[1746813670025,0.88413828,103300.0,103290.0,0.5850199]
[1746813670222,1.19613828,103300.0,103290.0,0.5850199]
[1746813671524,1.19613828,103300.0,103290.0,0.3608]
[1746813671828,0.1936199,103290.0,103280.0,0.274528]
[1746813672016,0.4836199,103290.0,103280.0,0.57836538]
[1746813672219,0.4508199,103290.0,103280.0,1.18398928]
[1746813672422,0.16,103290.0,103280.0,1.5136087]
[1746813673624,0.3536199,103290.0,103280.0,1.51360784]
[1746813673824,0.3536199,103290.0,103280.0,1.51360892]
[1746813674026,0.4178199,103290.0,103280.0,1.34615824]
[1746813675132,0.4492199,103290.0,103280.0,1.34615824]
[1746813675333,0.4492199,103290.0,103280.0,1.31496272]
[1746813676847,0.4492199,103290.0,103280.0,1.34706272]
[1746813678046,0.4492199,103290.0,103280.0,1.04706272]
[1746813678346,1.14747058,103290.0,103280.0,0.45665262]
[1746813678541,0.9800199,103290.0,103280.0,0.83666547]
[1746813678744,0.9945399,103290.0,103280.0,0.83666547]
[1746813678939,1.31199058,103290.0,103280.0,0.2385807]
[1746813679141,1.31199058,103290.0,103280.0,0.23858416]
[1746813679341,1.31199058,103290.0,103280.0,0.2238386]
[1746813679942,0.1936386,103280.0,103270.0,0.7325811]
[1746813680147,0.58508928,103280.0,103270.0,1.11632766]
[1746813680647,0.4176386,103280.0,103270.0,1.11632766]
[1746813680848,0.4176386,103280.0,103270.0,1.14702766]
[1746813681645,0.42745037,103280.0,103270.0,1.14702766]
[1746813681950,0.56285037,103280.0,103270.0,1.05004233]
[1746813682148,1.45110105,103280.0,103270.0,0.0319]
[1746813682347,0.1936574,103270.0,103260.0,0.0307]
[1746813682552,0.81720808,103270.0,103260.0,0.0331]
[1746813682751,1.20010808,103270.0,103260.0,0.0331]
[1746813682943,1.29694809,103270.0,103260.0,0.0331]
[1746813683146,0.1936761,103260.0,103250.0,0.25642906]
[1746813683452,0.87892678,103260.0,103250.0,0.65952906]
[1746813683843,0.87892678,103260.0,103250.0,1.02032906]
[1746813684151,1.03892678,103260.0,103250.0,1.02032906]
[1746813684450,1.03992678,103260.0,103250.0,0.65952906]
[1746813684750,1.03992678,103260.0,103250.0,0.28952906]
[1746813685248,1.04192678,103260.0,103250.0,0.2267949]
[1746813686449,1.04192678,103260.0,103250.0,0.5367949]
[1746813686450,0.8744761,103260.0,103250.0,0.5367949]
[1746813686649,0.8744761,103260.0,103250.0,0.8975949]
[1746813686847,0.4190761,103260.0,103250.0,0.9281949]
[1746813687051,0.01597315,103290.0,103250.0,1.77775191]
[1746813687249,0.28047315,103290.0,103280.0,0.77252337]
[1746813687451,0.43409305,103290.0,103280.0,1.40277405]
[1746813687643,0.43409305,103290.0,103280.0,1.41731012]
[1746813688045,0.43409305,103290.0,103280.0,1.51414366]
[1746813688046,0.40139305,103290.0,103280.0,1.51414366]
[1746813688251,0.20959305,103290.0,103280.0,1.49960759]
[1746813688446,0.21259305,103290.0,103280.0,1.51414196]
[1746813688644,0.01897315,103290.0,103280.0,1.51414196]
[1746813689155,0.01897315,103290.0,103280.0,1.49960759]
[1746813689355,0.01897315,103290.0,103280.0,1.33215691]
[1746813689558,0.01897315,103290.0,103280.0,1.49960759]
[1746813689856,0.01597315,103290.0,103280.0,1.49960759]
[1746813690046,0.01597315,103290.0,103280.0,1.51513968]
[1746813690456,0.01452,103290.0,103280.0,1.51513968]
[1746813690958,0.01452,103290.0,103280.0,1.5151385]
[1746813691257,0.01452,103290.0,103280.0,1.6751385]
[1746813691952,0.01452,103290.0,103280.0,1.66060759]
[1746813692148,0.01452,103290.0,103280.0,1.67513654]
[1746813692348,0.01452,103290.0,103280.0,1.67513531]
[1746813693055,0.01452,103290.0,103280.0,1.81881531]
[1746813693855,0.01452,103290.0,103280.0,1.80428759]
[1746813694158,0.01452,103290.0,103280.0,1.81881314]
[1746813694361,0.01452,103290.0,103280.0,1.82181314]
[1746813694751,0.01452,103290.0,103280.0,3.32581314]
[1746813695061,1e-07,103290.0,103280.0,3.49326382]
[1746813695752,1e-07,103290.0,103280.0,3.15836246]
[1746813696460,0.050194,103300.0,103290.0,0.41170467]
[1746813696653,0.050194,103300.0,103290.0,1.22013022]
[1746813696854,0.050194,103300.0,103290.0,1.55503158]
[1746813697060,0.050194,103300.0,103290.0,1.65185106]
[1746813697255,0.050194,103300.0,103290.0,1.65183183]
[1746813697858,0.050194,103300.0,103290.0,1.65383183]
[1746813698062,0.050194,103300.0,103290.0,1.48838115]
[1746813699462,0.050194,103300.0,103290.0,1.48837457]
[1746813700551,0.050194,103300.0,103290.0,1.32092389]
[1746813700758,0.050194,103300.0,103290.0,1.48837457]
[1746813701162,0.050194,103300.0,103290.0,1.77337457]
[1746813701464,0.050194,103300.0,103290.0,1.60592389]
[1746813701764,0.050194,103300.0,103290.0,1.77337457]
[1746813702369,0.050194,103300.0,103290.0,1.77321457]
[1746813702559,0.050194,103300.0,103290.0,1.60576389]
[1746813702871,0.050194,103300.0,103290.0,1.5551298]
[1746813703055,0.050194,103300.0,103290.0,1.77321457]
[1746813706272,0.050194,103300.0,103290.0,1.77320066]
[1746813707769,0.050194,103300.0,103290.0,1.7732]
[1746813708358,0.21764468,103300.0,103290.0,1.46250932]
[1746813708561,0.50324578,103300.0,103290.0,1.22993938]
[1746813708769,0.3357951,103300.0,103290.0,1.22993938]
[1746813709281,0.4957951,103300.0,103290.0,1.22993938]
[1746813709571,0.4812751,103300.0,103290.0,1.24442604]
[1746813709972,0.4812751,103300.0,103290.0,1.24242604]
[1746813710270,0.4812751,103300.0,103290.0,1.24042604]
[1746813710671,0.4812751,103300.0,103290.0,1.22593938]
[1746813711176,0.4812751,103300.0,103290.0,1.19543938]
[1746813711569,0.4812751,103300.0,103290.0,1.22833938]
[1746813712474,0.4812751,103300.0,103290.0,1.44642415]
[1746813712669,0.4812751,103300.0,103290.0,1.46091608]
[1746813712976,0.4812751,103300.0,103290.0,1.4609161]
[1746813713475,0.287674,103300.0,103290.0,1.4609161]
[1746813713774,0.287674,103300.0,103290.0,1.62836678]
[1746813714477,0.4812751,103300.0,103290.0,1.62836678]
[1746813714676,0.287674,103300.0,103290.0,1.62836678]
[1746813716477,0.4812751,103300.0,103290.0,1.62836678]
[1746813716877,0.287674,103300.0,103290.0,1.62836678]
[1746813717477,0.4812751,103300.0,103290.0,1.62836678]
[1746813717681,0.287674,103300.0,103290.0,1.62836678]
[1746813718279,0.4812751,103300.0,103290.0,1.4609161]
[1746813719379,0.195674,103300.0,103290.0,1.62836678]
[1746813720079,0.195674,103300.0,103290.0,3.12836678]
[1746813720080,0.260474,103300.0,103290.0,3.12836678]
[1746813720375,0.132674,103300.0,103290.0,3.12836678]
[1746813720878,0.132674,103300.0,103290.0,1.62836678]
[1746813721072,0.132674,103300.0,103290.0,1.63045118]
[1746813721875,0.132674,103300.0,103290.0,1.63245118]
[1746813722887,0.3262751,103300.0,103290.0,1.3234005]
[1746813723073,0.3262751,103300.0,103290.0,1.07241573]
[1746813723279,0.49372578,103300.0,103290.0,1.21249573]
[1746813723481,0.3262751,103300.0,103290.0,1.21249573]
[1746813724177,0.4862751,103300.0,103290.0,1.21249573]
[1746813725281,0.65372578,103300.0,103290.0,0.74937635]
[1746813725585,0.65372578,103300.0,103290.0,0.94299625]
[1746813725786,1.11133778,103300.0,103290.0,0.38857635]
[1746813725988,1.25017778,103300.0,103290.0,0.38857635]
[1746813726183,1.25017778,103300.0,103290.0,0.004]
[1746813726382,0.1936386,103280.0,103270.0,0.98563617]
[1746813726691,0.1936386,103280.0,103270.0,1.2401399]
[1746813726989,0.2572386,103280.0,103270.0,1.2729399]
[1746813727183,0.4172386,103280.0,103270.0,1.2729399]
[1746813728285,0.4172386,103280.0,103270.0,1.12706593]
[1746813728490,0.4172386,103280.0,103270.0,1.12806593]
[1746813729094,0.4172386,103280.0,103270.0,1.13006593]
[1746813729592,0.4172386,103280.0,103270.0,1.1154822]
[1746813729794,0.4492386,103280.0,103270.0,1.1154822]
[1746813731493,0.4564986,103280.0,103270.0,1.1154822]
[1746813732498,0.4564986,103280.0,103270.0,1.1484822]
[1746813732798,0.4564986,103280.0,103270.0,1.36656697]
[1746813736598,0.4564986,103280.0,103270.0,1.39826697]
[1746813737002,0.4710186,103280.0,103270.0,1.39826697]
[1746813737493,0.4710186,103280.0,103270.0,1.36656697]
[1746813744498,0.4710186,103280.0,103270.0,1.1484822]
[1746813744707,0.63846928,103280.0,103270.0,1.067068]
[1746813744897,0.63846928,103280.0,103270.0,0.9702414]
[1746813745202,0.63846928,103280.0,103270.0,0.9502414]
[1746813745702,1.08926928,103280.0,103270.0,0.003]
[1746813745897,1.45938928,103280.0,103270.0,0.003]
[1746813746197,0.1936761,103260.0,103250.0,0.40747088]
[1746813746403,0.36112678,103260.0,103250.0,0.96115968]
[1746813746599,0.2884761,103260.0,103250.0,0.96115968]
[1746813746906,0.2884761,103260.0,103250.0,0.95115968]
[1746813747103,0.4484761,103260.0,103250.0,0.95115968]
[1746813747406,0.4754261,103260.0,103250.0,0.95615968]
[1746813748905,0.4754261,103260.0,103250.0,0.96015968]
[1746813749299,0.82032746,103260.0,103250.0,0.02387088]
[1746813749504,1.67784746,103260.0,103250.0,0.02387088]
[1746813749710,1.71074746,103260.0,103250.0,0.02387088]
[1746813749899,1.80759546,103260.0,103250.0,0.02387088]
[1746813750411,1.80759546,103260.0,103250.0,0.21756578]
[1746813750412,1.64014478,103260.0,103250.0,0.21756578]
[1746813750600,1.64014478,103260.0,103250.0,0.02387088]
[1746813752696,0.1937136,103240.0,103230.0,0.27827826]
[1746813752902,0.97420428,103240.0,103230.0,0.62121739]
[1746813753102,0.97420428,103240.0,103230.0,0.96744234]
[1746813753103,1.22820428,103240.0,103230.0,0.96744234]
[1746813753911,1.22820428,103240.0,103230.0,0.61064234]
[1746813754411,1.23780762,103240.0,103230.0,0.61464234]
[1746813754613,1.69547562,103240.0,103230.0,0.06090994]
[1746813754808,1.33467562,103240.0,103230.0,0.2531892]
[1746813755003,1.33467562,103240.0,103230.0,0.0264568]
[1746813755310,1.69547562,103240.0,103230.0,0.0264568]
[1746813757514,1.59860762,103240.0,103230.0,0.0264568]
[1746813757713,1.69547562,103240.0,103230.0,0.0264568]
[1746813758707,1.69547562,103240.0,103230.0,0.0584568]
[1746813758708,1.72837562,103240.0,103230.0,0.0584568]
[1746813760515,1.72837562,103240.0,103230.0,0.2521892]
[1746813760714,0.96693694,103240.0,103230.0,1.16107397]
[1746813761015,0.50473694,103240.0,103230.0,1.19207397]
[1746813761210,0.64089694,103240.0,103230.0,1.22327397]
[1746813763110,0.77741694,103240.0,103230.0,1.22327397]
[1746813764219,0.94486762,103240.0,103230.0,1.22327397]
[1746813764718,0.77520762,103240.0,103230.0,1.22327397]
[1746813766419,0.77520762,103240.0,103230.0,0.66874157]
[1746813766619,1.14520762,103240.0,103230.0,0.33874157]
[1746813766823,1.17810762,103240.0,103230.0,0.0584568]
[1746813767117,1.63577562,103240.0,103230.0,0.0264568]
[1746813767715,1.63577562,103240.0,103230.0,0.0593568]
[1746813768623,1.54616762,103240.0,103230.0,0.0593568]
[1746813768919,1.54616762,103240.0,103230.0,0.3893568]
[1746813769911,1.57312762,103240.0,103230.0,0.3893568]
[1746813770720,1.57312762,103240.0,103230.0,0.96824157]
[1746813770721,1.18163694,103240.0,103230.0,0.96824157]
[1746813770916,1.18163694,103240.0,103230.0,1.03334157]
[1746813772022,0.90895694,103240.0,103230.0,1.22707397]
[1746813772216,0.81163694,103240.0,103230.0,1.22707397]
[1746813773015,0.81163694,103240.0,103230.0,0.77334157]
[1746813773215,0.81163694,103240.0,103230.0,1.03334157]
[1746813774313,0.81163694,103240.0,103230.0,0.8152568]
[1746813774615,0.81163694,103240.0,103230.0,1.03334157]
[1746813774824,0.81163694,103240.0,103230.0,1.22707397]
[1746813776022,0.81163694,103240.0,103230.0,1.03334157]
[1746813778121,0.97908762,103240.0,103230.0,1.03334157]
[1746813778508,0.97908762,103240.0,103230.0,0.70334157]
[1746813778713,1.23908762,103240.0,103230.0,0.70334157]
[1746813779314,1.23908762,103240.0,103230.0,0.31024157]
[1746813781323,1.07163694,103240.0,103230.0,0.31024157]
[1746813781625,0.81079694,103240.0,103230.0,1.19477397]
[1746813781919,0.67487694,103240.0,103230.0,0.9766892]
[1746813782226,0.65079694,103240.0,103230.0,1.19477397]
[1746813782525,0.65079694,103240.0,103230.0,1.00104157]
[1746813783024,0.81824762,103240.0,103230.0,1.19477397]
[1746813783823,0.81824762,103240.0,103230.0,1.00104157]
[1746813784023,0.65079694,103240.0,103230.0,1.00104157]
[1746813784828,0.65079694,103240.0,103230.0,1.19477397]
[1746813785723,0.65079694,103240.0,103230.0,1.00104157]
[1746813786126,0.63627694,103240.0,103230.0,1.19477397]
[1746813786319,0.63627694,103240.0,103230.0,1.00104157]
[1746813786716,0.65079694,103240.0,103230.0,1.00104157]
[1746813787020,0.81824762,103240.0,103230.0,1.00104157]
[1746813787221,0.97824762,103240.0,103230.0,1.00104157]
[1746813788127,0.81824762,103240.0,103230.0,1.00104157]
[1746813789126,0.81824762,103240.0,103230.0,0.67104157]
[1746813789328,0.81824762,103240.0,103230.0,1.05104157]
[1746813790432,0.81824762,103240.0,103230.0,0.67104157]
[1746813790620,0.91824762,103240.0,103230.0,0.0593568]
[1746813790825,1.13824762,103240.0,103230.0,0.0593568]
[1746813791126,1.29824762,103240.0,103230.0,0.0593568]
[1746813791325,1.29824762,103240.0,103230.0,0.27744157]
[1746813792028,1.13079694,103240.0,103230.0,0.27744157]
[1746813792229,1.29824762,103240.0,103230.0,0.62744157]
[1746813792627,1.13079694,103240.0,103230.0,0.62744157]
[1746813792828,1.29824762,103240.0,103230.0,0.62744157]
[1746813796228,1.13079694,103240.0,103230.0,0.62744157]
[1746813796423,1.29824762,103240.0,103230.0,0.62744157]
[1746813796933,1.29824762,103240.0,103230.0,0.66034157]
[1746813797235,1.29824762,103240.0,103230.0,0.31034157]
[1746813797434,1.29824762,103240.0,103230.0,0.69034157]
[1746813798334,0.99487694,103240.0,103230.0,0.69034157]
[1746813798536,0.97820762,103240.0,103230.0,0.69034157]
[1746813799137,0.81820762,103240.0,103230.0,0.69034157]
[1746813799337,0.81820762,103240.0,103230.0,0.31034157]
[1746813799534,1.12820762,103240.0,103230.0,0.0264568]
[1746813799836,1.48900762,103240.0,103230.0,0.0580568]
[1746813800232,1.64900762,103240.0,103230.0,0.0580568]
[1746813800834,1.64900762,103240.0,103230.0,0.04357152]
[1746813801140,0.1937512,103220.0,103210.0,0.3937]
[1746813801439,0.49708188,103220.0,103210.0,1.1865377]
[1746813801732,0.56268188,103220.0,103210.0,1.1865377]
[1746813801927,0.4221912,103220.0,103210.0,1.1865377]
[1746813802131,0.3895912,103220.0,103210.0,1.1865377]
[1746813802436,0.3895912,103220.0,103210.0,0.97545293]
[1746813802638,0.3895912,103220.0,103210.0,1.2242377]
[1746813802938,0.3565912,103220.0,103210.0,1.2242377]
[1746813803139,0.4344212,103220.0,103210.0,1.2292377]
[1746813803332,0.3711212,103220.0,103210.0,1.2292377]
[1746813803533,0.3711212,103220.0,103210.0,1.39668838]
[1746813803732,0.3711212,103220.0,103210.0,1.49357352]
[1746813804233,0.2352412,103220.0,103210.0,1.49357352]
[1746813804439,0.2352412,103220.0,103210.0,1.32612284]
[1746813806341,0.3289412,103220.0,103210.0,1.32612284]
[1746813806842,0.3289412,103220.0,103210.0,1.32611143]
[1746813807835,0.2976412,103220.0,103210.0,1.21460448]
[1746813808637,0.3006412,103220.0,103210.0,1.20260448]
[1746813809752,0.2382412,103220.0,103210.0,1.4669403]
[1746813809947,0.2382412,103220.0,103210.0,1.48161822]
[1746813810138,0.2455012,103220.0,103210.0,1.64161822]
[1746813810746,0.2455012,103220.0,103210.0,1.64161339]
[1746813812252,0.2455012,103220.0,103210.0,1.77745339]
[1746813812551,0.05175,103220.0,103210.0,1.77745339]
[1746813812857,0.02777848,103220.0,103210.0,1.87433739]
[1746813814949,0.02777848,103220.0,103210.0,2.12433739]
[1746813815152,0.1937149,103240.0,103230.0,0.2905914]
[1746813815347,0.1937149,103240.0,103230.0,1.60274687]
[1746813815547,0.1937149,103240.0,103230.0,1.69894687]
[1746813815755,0.1937149,103240.0,103230.0,1.79582604]
[1746813816658,0.1937149,103240.0,103230.0,1.57994366]
[1746813816854,0.2572149,103240.0,103230.0,1.53151366]
[1746813817151,0.45726558,103240.0,103230.0,1.43462852]
[1746813817362,0.45726558,103240.0,103230.0,1.43462261]
[1746813817957,0.2898149,103240.0,103230.0,1.43462261]
[1746813818252,0.4498149,103240.0,103230.0,1.43462261]
[1746813818952,0.4508149,103240.0,103230.0,1.43462261]
[1746813819750,0.4182149,103240.0,103230.0,1.60207329]
[1746813819956,0.3557149,103240.0,103230.0,1.69893966]
[1746813820156,0.1957149,103240.0,103230.0,1.69893966]
[1746813820851,0.2277149,103240.0,103230.0,1.69893608]
[1746813821360,0.2277149,103240.0,103230.0,1.5314854]
[1746813821562,0.2609149,103240.0,103230.0,1.5314854]
[1746813821860,0.2609149,103240.0,103230.0,1.53148584]
[1746813822662,0.2277149,103240.0,103230.0,1.53148584]
[1746813824055,0.2277149,103240.0,103230.0,1.53148463]
[1746813824453,0.2277149,103240.0,103230.0,1.17068463]
[1746813824654,0.1957149,103240.0,103230.0,1.53148463]
[1746813824957,0.1957149,103240.0,103230.0,1.53148417]
[1746813825463,0.1947149,103240.0,103230.0,1.53148417]
[1746813825661,0.1977149,103240.0,103230.0,1.53148417]
[1746813825966,0.1997149,103240.0,103230.0,1.53148417]
[1746813826155,0.2315149,103240.0,103230.0,1.53148417]
[1746813827365,0.2624149,103240.0,103230.0,1.53148417]
[1746813828967,0.2624149,103240.0,103230.0,1.51682777]
[1746813829263,0.2624149,103240.0,103230.0,0.7841]
[1746813829264,0.1997149,103240.0,103230.0,0.7841]
[1746813829467,0.1997149,103240.0,103230.0,1.3713324]
[1746813829759,0.006,103240.0,103230.0,1.63564945]
[1746813830264,0.006,103240.0,103230.0,1.65029911]
[1746813830562,0.006,103240.0,103230.0,2.05073779]
[1746813830858,0.006,103240.0,103230.0,1.88328711]
[1746813831061,0.004,103240.0,103230.0,1.88328711]
[1746813831262,0.004,103240.0,103230.0,2.05276742]
[1746813831459,0.004,103240.0,103230.0,2.2202181]
[1746813831666,0.001,103240.0,103230.0,2.2202181]
[1746813831855,0.002,103240.0,103230.0,2.2202181]
[1746813835066,0.002,103240.0,103230.0,1.88531674]
[1746813835268,0.002,103240.0,103230.0,3.7202181]
[1746813835867,0.002,103240.0,103230.0,3.72020317]
[1746813837667,0.002,103240.0,103230.0,3.85576317]
[1746813840663,0.01697,103250.0,103240.0,0.1937136]
[1746813840871,0.01697,103250.0,103240.0,1.17779901]
[1746813841063,0.01697,103250.0,103240.0,1.43465501]
[1746813841263,0.01697,103250.0,103240.0,1.531512]
[1746813841469,0.01697,103250.0,103240.0,3.031512]
[1746813841674,0.01697,103250.0,103240.0,2.86406132]
[1746813841865,0.02297,103250.0,103240.0,3.031512]
[1746813842267,0.02297,103250.0,103240.0,2.871512]
[1746813842773,0.2166649,103250.0,103240.0,2.774656]
[1746813842968,0.3116649,103250.0,103240.0,2.910576]
[1746813843770,0.3116649,103250.0,103240.0,1.24312532]
[1746813843970,0.3116649,103250.0,103240.0,1.410576]
[1746813844467,0.3116649,103250.0,103240.0,1.39594127]
[1746813845270,0.4716649,103250.0,103240.0,1.39594127]
[1746813846272,0.4716649,103250.0,103240.0,1.06227059]
[1746813847172,0.63911558,103250.0,103240.0,1.03137059]
[1746813847568,0.4716649,103250.0,103240.0,1.06197059]
[1746813848774,0.4619549,103250.0,103240.0,1.06197059]
[1746813851875,0.4619549,103250.0,103240.0,1.03137059]
[1746813852180,1.01524558,103250.0,103240.0,0.3608]
[1746813852475,1.01524558,103250.0,103240.0,0.5545136]
[1746813852675,1.01524558,103250.0,103240.0,0.8745136]
[1746813852871,1.01524558,103250.0,103240.0,0.3608]
[1746813853080,0.1937136,103240.0,103230.0,0.651379]
[1746813853280,0.42566428,103240.0,103230.0,1.011379]
[1746813854083,0.58666428,103240.0,103230.0,1.011379]
[1746813854374,0.58766428,103240.0,103230.0,1.011379]
[1746813854579,0.4202136,103240.0,103230.0,1.011379]
[1746813855185,0.4192136,103240.0,103230.0,0.9629464]
[1746813855375,0.58966428,103240.0,103230.0,0.9145174]
[1746813855574,0.59366428,103240.0,103230.0,0.9469174]
[1746813855775,0.4262136,103240.0,103230.0,0.9469174]
[1746813857481,0.43609382,103240.0,103230.0,0.9469174]
[1746813858578,0.1937324,103230.0,103220.0,0.6514086]
[1746813858779,0.59098308,103230.0,103220.0,0.37]
[1746813858973,0.1937512,103220.0,103210.0,0.70014277]
[1746813859182,0.58320188,103220.0,103210.0,0.94325987]
[1746813859387,0.58320188,103220.0,103210.0,0.71660277]
[1746813859688,0.58320188,103220.0,103210.0,0.90891971]
[1746813860287,0.58320188,103220.0,103210.0,0.71514981]
[1746813860479,0.58320188,103220.0,103210.0,0.90891971]
[1746813860681,0.58420188,103220.0,103210.0,0.37514981]
[1746813860884,0.87520188,103220.0,103210.0,0.37514981]
[1746813861287,0.87520188,103220.0,103210.0,0.56891971]
[1746813861487,1.01308188,103220.0,103210.0,0.56891971]
[1746813861690,1.01308188,103220.0,103210.0,0.89891971]
[1746813861880,0.5676312,103220.0,103210.0,0.89891971]
[1746813862085,0.5576312,103220.0,103210.0,0.93131971]
[1746813862896,0.5596312,103220.0,103210.0,0.93131971]
[1746813864987,0.6955112,103220.0,103210.0,1.09877039]
[1746813865291,0.6955112,103220.0,103210.0,0.96181971]
[1746813865589,0.23,103220.0,103210.0,1.22615553]
[1746813865790,0.3932512,103220.0,103210.0,1.22615553]
[1746813866183,0.1997512,103220.0,103210.0,1.22615553]
[1746813866888,0.1977512,103220.0,103210.0,1.22615553]
[1746813867086,0.1987512,103220.0,103210.0,1.22615553]
[1746813867292,0.1967512,103220.0,103210.0,1.22615553]
[1746813867793,0.1957512,103220.0,103210.0,1.22615553]
[1746813868991,0.1957512,103220.0,103210.0,1.05870485]
[1746813869191,0.2278512,103220.0,103210.0,1.22615553]
[1746813869493,0.2278512,103220.0,103210.0,1.05870485]
[1746813869991,0.2607512,103220.0,103210.0,1.05870485]
[1746813871992,0.2286512,103220.0,103210.0,1.05870485]
[1746813872596,0.1957512,103220.0,103210.0,1.05870485]
[1746813873596,0.2587512,103220.0,103210.0,1.05870485]
[1746813874693,0.42620188,103220.0,103210.0,1.05870485]
[1746813874898,0.42620188,103220.0,103210.0,0.96181971]
[1746813875298,0.58620188,103220.0,103210.0,0.96181971]
[1746813875491,0.4187512,103220.0,103210.0,0.96181971]
[1746813879300,0.3557512,103220.0,103210.0,1.05870485]
[1746813879694,0.3875512,103220.0,103210.0,1.05870485]
[1746813880102,0.2275512,103220.0,103210.0,1.05870485]
[1746813880801,0.2598512,103220.0,103210.0,1.05870485]
[1746813881210,0.4198512,103220.0,103210.0,1.05870485]
[1746813883300,0.58730188,103220.0,103210.0,0.73754981]
[1746813883504,0.58730188,103220.0,103210.0,0.93131971]
[1746813885304,0.58730188,103220.0,103210.0,0.96231971]
[1746813886410,0.4198512,103220.0,103210.0,0.96231971]
[1746813888206,0.4198512,103220.0,103210.0,0.76854981]
[1746813888507,0.4198512,103220.0,103210.0,0.73754981]
[1746813888912,0.4198512,103220.0,103210.0,0.39085931]
[1746813889202,0.1938075,103190.0,103180.0,0.14761967]